bitfinex/quotes_SOLUSD_20250616
["timestamp","ask_amount","ask_price","bid_price","bid_amount"]
[1750074635565,9.07180285,156.47,156.43,22.37354759]
[1750074637961,9.07180285,156.47,156.43,15.98091191]
[1750074640070,9.07180285,156.47,156.43,22.31388311]
[1750074641481,9.07180285,156.47,156.44,6.3329712]
[1750074641482,2.73883165,156.47,156.44,6.3329712]
[1750074642355,2.73883165,156.47,156.45,6.39181847]
[1750074642556,2.73883165,156.47,156.45,12.72478967]
[1750074643452,2.73883165,156.47,156.46,6.3329712]
[1750074644156,2.73883165,156.47,156.45,12.72478967]
[1750074644677,2.73883165,156.47,156.46,6.3329712]
[1750074645972,2.73883165,156.47,156.45,12.72478967]
[1750074646788,2.73883165,156.47,156.44,22.37279467]
[1750074646953,6.3329712,156.46,156.44,22.37279467]
[1750074647787,6.07273087,156.47,156.44,22.37279467]
[1750074647981,6.3329712,156.46,156.44,22.37279467]
[1750074648866,12.40570207,156.47,156.44,15.98056762]
[1750074649064,2.73883165,156.47,156.44,22.31353882]
[1750074649455,2.73883165,156.47,156.44,15.98056762]
[1750074649652,9.07180285,156.47,156.44,15.98056762]
[1750074650678,2.73883165,156.47,156.44,15.98056762]
[1750074650876,2.73883165,156.47,156.42,22.37565527]
[1750074651075,2.73883165,156.47,156.43,6.3329712]
[1750074654091,2.73883165,156.47,156.44,22.37279467]
[1750074655466,2.73883165,156.47,156.44,15.98056762]
[1750074655678,9.07180285,156.47,156.44,15.98056762]
[1750074655884,6.3329712,156.46,156.44,15.98056762]
[1750074657588,2.73883165,156.47,156.46,32.39140994]
[1750074657771,2.73883165,156.47,156.46,38.72438114]
[1750074664572,2.73883165,156.47,156.46,32.39140994]
[1750074664993,2.73883165,156.47,156.46,38.72438114]
[1750074665890,2.73883165,156.47,156.46,32.39140994]
[1750074666083,2.73883165,156.47,156.46,38.72438114]
[1750074668178,2.73883165,156.47,156.46,32.39140994]
[1750074668377,2.73883165,156.47,156.46,38.72438114]
[1750074669383,2.73883165,156.47,156.46,32.39140994]
[1750074669584,2.73883165,156.47,156.46,38.72438114]
[1750074670616,2.73883165,156.47,156.46,32.39140994]
[1750074670785,2.73883165,156.47,156.46,38.72438114]
[1750074671680,2.73883165,156.47,156.46,32.39140994]
[1750074671875,9.07180285,156.47,156.46,6.39140994]
[1750074672082,2.73883165,156.47,156.46,6.39140994]
[1750074672508,9.07180285,156.47,156.46,6.39140994]
[1750074672706,9.07180285,156.47,156.44,15.98056762]
[1750074672913,6.3329712,156.46,156.44,15.98056762]
[1750074673896,2.73883165,156.47,156.44,15.98056762]
[1750074674210,6.3329712,156.46,156.44,15.98056762]
[1750074676111,2.73883165,156.47,156.44,15.98056762]
[1750074676288,6.3329712,156.46,156.44,15.98056762]
[1750074678249,6.3329712,156.46,156.43,6.39263568]
[1750074678250,6.3329712,156.46,156.42,22.37565527]
[1750074678512,6.3329712,156.46,156.42,28.70862647]
[1750074678711,2.73883165,156.47,156.42,28.70862647]
[1750074679008,2.73883165,156.47,156.44,6.3329712]
[1750074679607,2.73883165,156.47,156.43,6.3329712]
[1750074679813,9.07180285,156.47,156.42,54.3408771]
[1750074680109,9.07180285,156.47,156.42,60.6738483]
[1750074682009,9.07180285,156.47,156.43,6.3329712]
[1750074682224,9.07180285,156.47,156.42,60.6738483]
[1750074683016,6.3329712,156.46,156.42,22.37565527]
[1750074683224,6.3329712,156.45,156.42,22.37565527]
[1750074683611,6.3329712,156.44,156.42,22.37565527]
[1750074685520,0.28432314,156.46,156.42,22.37565527]
[1750074685826,6.3329712,156.43,156.42,22.37565527]
[1750074686718,6.3329712,156.43,156.42,6.39304436]
[1750074688417,6.3329712,156.43,156.4,15.98465421]
[1750074688418,6.3329712,156.43,156.4,6.39386189]
[1750074688606,6.3329712,156.41,156.4,6.39386189]
[1750074689213,6.3329712,156.42,156.4,6.39386189]
[1750074690423,6.3329712,156.42,156.39,22.37950009]
[1750074691437,6.3329712,156.43,156.39,22.37950009]
[1750074692617,1.5794,156.45,156.39,22.37950009]
[1750074692824,6.3329712,156.43,156.39,28.71247129]
[1750074693136,6.3329712,156.44,156.39,28.71247129]
[1750074693437,29.50315479,156.47,156.4,6.3329712]
[1750074693438,6.3329712,156.45,156.4,6.3329712]
[1750074693759,2.88099322,156.47,156.39,54.35085375]
[1750074693914,6.3329712,156.44,156.39,28.71247129]
[1750074694213,6.3329712,156.44,156.4,6.3329712]
[1750074694856,6.3329712,156.44,156.41,22.37708586]
[1750074696142,2.88099322,156.47,156.41,22.37708586]
[1750074696143,6.3329712,156.43,156.41,22.37708586]
[1750074696327,6.3329712,156.42,156.41,6.3934531]
[1750074696724,6.3329712,156.42,156.38,12.72765082]
[1750074697132,6.3329712,156.42,156.38,28.71434988]
[1750074698154,6.3329712,156.43,156.39,6.3329712]
[1750074698646,6.3329712,156.41,156.38,22.38137868]
[1750074699015,6.3329712,156.42,156.38,22.38137868]
[1750074699426,6.3329712,156.43,156.38,28.71434988]
[1750074700819,6.3329712,156.43,156.39,6.3329712]
[1750074701248,6.3329712,156.44,156.39,6.3329712]
[1750074702221,6.3329712,156.45,156.41,6.3329712]
[1750074702714,6.3329712,156.44,156.4,6.3329712]
[1750074702917,6.3329712,156.44,156.41,22.37708586]
[1750074704125,3.33480872,156.46,156.39,22.37994756]
[1750074704315,6.3329712,156.42,156.39,22.37994756]
[1750074704744,6.3329712,156.41,156.39,22.37994756]
[1750074704945,3.61913186,156.46,156.39,48.37994756]
[1750074704946,6.3329712,156.4,156.39,48.37994756]
[1750074705144,6.3329712,156.4,156.39,6.39427073]
[1750074705624,6.3329712,156.41,156.39,6.39427073]
[1750074706338,6.3329712,156.41,156.37,22.38280474]
[1750074708322,6.3329712,156.41,156.37,28.71577594]
[1750074708529,6.3329712,156.43,156.38,6.3329712]
[1750074709549,3.61913186,156.46,156.37,28.71577594]
[1750074709550,6.3329712,156.42,156.37,28.71577594]
[1750074711044,6.3329712,156.4,156.37,22.38280474]
[1750074714141,6.3329712,156.39,156.37,22.38280474]
[1750074714342,6.3329712,156.38,156.37,6.39508857]
[1750074715425,6.3329712,156.38,156.35,15.98968052]
[1750074715874,6.3329712,156.39,156.35,15.98968052]
[1750074717561,6.3329712,156.39,156.35,22.38558713]
[1750074718368,6.3329712,156.38,156.35,22.38558713]
[1750074719057,1.652,156.44,156.37,6.3329712]
[1750074719263,6.3329712,156.42,156.35,54.36512022]
[1750074719433,6.3329712,156.42,156.38,6.3329712]
[1750074719634,6.3329712,156.42,156.39,6.39427073]
[1750074720233,6.3329712,156.43,156.39,22.37994756]
[1750074720430,6.3329712,156.41,156.39,6.39427073]
[1750074720637,6.3329712,156.4,156.39,6.39427073]
[1750074720937,6.3329712,156.4,156.37,15.98764424]
[1750074720938,6.3329712,156.4,156.37,6.39508857]
[1750074721254,6.3329712,156.4,156.33,22.3885295]
[1750074721255,6.3329712,156.38,156.33,22.3885295]
[1750074721552,6.3329712,156.37,156.33,22.3885295]
[1750074721766,6.3329712,156.36,156.33,22.3885295]
[1750074721937,6.3329712,156.37,156.33,22.3885295]
[1750074722262,9.66967769,156.37,156.33,28.7215007]
[1750074722761,9.66967769,156.37,156.33,22.3885295]
[1750074723845,9.66967769,156.37,156.33,28.7215007]
[1750074725960,9.66967769,156.37,156.33,22.3885295]
[1750074726264,0.28432314,156.4,156.34,6.3329712]
[1750074726460,6.3329712,156.38,156.33,28.7215007]
[1750074726667,9.66922534,156.38,156.33,28.7215007]
[1750074726843,6.3329712,156.37,156.33,28.7215007]
[1750074727840,3.33625414,156.38,156.36,32.3329712]
[1750074728160,6.3329712,156.41,156.37,6.3329712]
[1750074728662,6.3329712,156.41,156.36,32.3329712]
[1750074729564,6.3329712,156.41,156.37,22.38280999]
[1750074731866,6.3329712,156.41,156.37,28.71578119]
[1750074732067,6.3329712,156.41,156.37,22.38280999]
[1750074732359,6.3329712,156.4,156.37,22.38280999]
[1750074733150,6.3329712,156.39,156.37,6.39508857]
[1750074733869,6.3329712,156.4,156.37,6.39508857]
[1750074734458,6.3329712,156.38,156.37,6.39508857]
[1750074734665,6.3329712,156.38,156.34,6.39631572]
[1750074734859,6.3329712,156.36,156.34,6.39631572]
[1750074735059,0.28432314,156.39,156.34,6.39631572]
[1750074735258,6.3329712,156.36,156.34,6.39631572]
[1750074735669,6.3329712,156.36,156.33,22.38758647]
[1750074736067,6.3329712,156.37,156.33,28.72055767]
[1750074736371,6.3329712,156.37,156.33,54.72055767]
[1750074739278,6.3329712,156.37,156.33,48.38758647]
[1750074740452,6.3329712,156.36,156.33,48.38758647]
[1750074740968,6.3329712,156.36,156.33,22.38758647]
[1750074742186,6.3329712,156.36,156.33,15.9908616]
[1750074744395,6.3329712,156.37,156.33,22.38758647]
[1750074744689,3.33546025,156.42,156.36,6.3329712]
[1750074744690,6.3329712,156.4,156.36,6.3329712]
[1750074744982,6.3329712,156.39,156.35,6.3329712]
[1750074746454,6.3329712,156.39,156.36,22.38424148]
[1750074746988,6.3329712,156.4,156.36,28.71721268]
[1750074747156,3.47762182,156.42,156.36,28.71721268]
[1750074747356,6.3329712,156.41,156.37,6.3329712]
[1750074747664,6.3329712,156.4,156.36,28.71721268]
[1750074747867,3.33546025,156.42,156.36,28.71721268]
[1750074748193,6.3329712,156.4,156.36,28.71721268]
[1750074748971,3.33546025,156.42,156.37,6.3329712]
[1750074749171,3.33546025,156.42,156.4,6.3329712]
[1750074749380,9.07180285,156.47,156.41,6.3329712]
[1750074749566,2.73883165,156.47,156.43,6.3329712]
[1750074749764,2.73883165,156.47,156.44,6.3329712]
[1750074750286,2.73883165,156.47,156.46,6.3329712]
[1750074750663,2.73883165,156.47,156.46,12.72438114]
[1750074751287,2.73883165,156.47,156.46,14.25898114]
[1750074754397,2.73883165,156.47,156.46,12.72438114]
[1750074757370,2.73883165,156.47,156.46,38.72438114]
[1750074758196,2.73883165,156.47,156.46,32.39140994]
[1750074758499,2.73883165,156.47,156.46,38.72438114]
[1750074760094,2.73883165,156.47,156.46,32.39140994]
[1750074760391,2.73883165,156.47,156.46,38.72438114]
[1750074761587,2.73883165,156.47,156.46,32.39140994]
[1750074761904,2.73883165,156.47,156.46,38.72438114]
[1750074765601,2.73883165,156.47,156.46,12.72438114]
[1750074769800,2.73883165,156.47,156.46,38.72438114]
[1750074770105,2.73883165,156.47,156.46,12.72438114]
[1750074770707,2.73883165,156.47,156.46,38.72438114]
[1750074770902,2.73883165,156.47,156.46,32.39140994]
[1750074771114,2.73883165,156.47,156.46,38.72438114]
[1750074773106,11.66619516,156.52,156.5,26.0]
[1750074773303,1.3267103,156.54,156.53,26.0]
[1750074773510,1.3267103,156.54,156.53,32.3329712]
[1750074773696,1.3267103,156.54,156.52,26.0]
[1750074773895,1.3267103,156.54,156.52,32.3329712]
[1750074774193,1.3267103,156.54,156.53,6.3329712]
[1750074775002,1.3267103,156.54,156.53,32.3329712]
[1750074775206,1.3267103,156.54,156.53,12.72152291]
[1750074775513,2.73883165,156.72,156.61,0.28432314]
[1750074775714,6.3329712,156.67,156.62,32.3329712]
[1750074776017,6.3329712,156.69,156.62,26.0]
[1750074776326,6.3329712,156.68,156.63,6.3329712]
[1750074776620,6.3329712,156.7,156.66,6.3329712]
[1750074776787,6.3329712,156.71,156.66,6.3329712]
[1750074777304,6.3329712,156.71,156.67,22.3399502]
[1750074778199,2.73883165,156.72,156.67,28.6729214]
[1750074778388,9.07180285,156.72,156.68,6.3329712]
[1750074778727,2.73883165,156.72,156.68,26.0]
[1750074778892,2.73883165,156.72,156.71,6.3329712]
[1750074779084,2.73883165,156.72,156.71,6.3812137]
[1750074781203,2.73883165,156.72,156.67,15.95710729]
[1750074781204,9.07180285,156.72,156.67,15.95710729]
[1750074781515,6.3329712,156.69,156.67,15.95710729]
[1750074783093,2.73883165,156.72,156.65,12.71662903]
[1750074783287,6.3329712,156.69,156.65,12.71662903]
[1750074783699,6.3329712,156.69,156.65,28.67577361]
[1750074784311,6.3329712,156.68,156.65,22.34280241]
[1750074784620,6.3329712,156.67,156.65,6.38365783]
[1750074784998,6.3329712,156.67,156.62,22.29454683]
[1750074784999,6.3329712,156.67,156.63,28.67862656]
[1750074785204,0.14216157,156.69,156.63,28.67862656]
[1750074785510,6.3329712,156.67,156.63,22.34565536]
[1750074787812,6.3329712,156.66,156.63,22.34565536]
[1750074792110,6.3329712,156.67,156.63,22.34565536]
[1750074793527,6.3329712,156.68,156.63,28.67862656]
[1750074793903,6.3329712,156.68,156.64,6.3329712]
[1750074794104,6.3329712,156.68,156.63,22.34565536]
[1750074794407,6.3329712,156.67,156.63,28.67862656]
[1750074794597,6.3329712,156.64,156.63,6.38447296]
[1750074795312,6.3329712,156.64,156.61,6.38528829]
[1750074795513,6.3329712,156.62,156.58,6.38651168]
[1750074795715,6.3329712,156.62,156.58,22.35279089]
[1750074796412,6.3329712,156.61,156.58,22.35279089]
[1750074797524,0.14216157,156.64,156.58,28.68576209]
[1750074797707,6.3329712,156.62,156.58,28.68576209]
[1750074797908,6.3329712,156.61,156.58,22.35279089]
[1750074801737,0.14216157,156.64,156.58,22.35279089]
[1750074801738,6.3329712,156.62,156.58,22.35279089]
[1750074801930,6.3329712,156.61,156.58,22.35279089]
[1750074802936,6.3329712,156.59,156.58,6.38651168]
[1750074803737,2.73883165,156.72,156.66,26.0]
[1750074803925,2.73883165,156.72,156.68,26.0]
[1750074804132,2.73883165,156.72,156.71,26.0]
[1750074804511,2.73883165,156.72,156.64,6.3329712]
[1750074804723,2.73883165,156.72,156.63,18.64964886]
[1750074804724,9.07180285,156.72,156.7,26.0]
[1750074804927,12.1550698,156.72,156.7,26.0]
[1750074805310,12.1550698,156.72,156.68,35.41623815]
[1750074805615,2.73883165,156.72,156.68,35.41623815]
[1750074805864,12.1550698,156.72,156.68,26.0]
[1750074806022,9.41623815,156.71,156.68,26.0]
[1750074806226,9.41623815,156.71,156.7,26.0]
[1750074806422,9.41623815,156.71,156.65,57.75904056]
[1750074806628,9.41623815,156.71,156.67,6.38284291]
[1750074806827,9.41623815,156.71,156.67,22.3399502]
[1750074807029,9.41623815,156.71,156.67,31.75618835]
[1750074807222,12.1550698,156.72,156.67,31.75618835]
[1750074808835,12.1550698,156.72,156.68,9.41623815]
[1750074809019,12.1550698,156.72,156.67,25.37334544]
[1750074809218,12.1550698,156.72,156.68,9.41623815]
[1750074809934,12.1550698,156.72,156.67,25.37334544]
[1750074810329,12.1550698,156.72,156.68,9.41623815]
[1750074810641,11.1550698,156.72,156.68,9.41623815]
[1750074810842,11.1550698,156.72,156.69,6.3820282]
[1750074811336,1.73883165,156.72,156.69,6.3820282]
[1750074816746,11.1550698,156.72,156.69,6.3820282]
[1750074818363,9.41623815,156.71,156.69,6.3820282]
[1750074818562,9.41623815,156.71,156.68,6.38243553]
[1750074819427,1.73883165,156.72,156.68,6.38243553]
[1750074819629,9.41623815,156.71,156.68,6.38243553]
[1750074820034,9.41623815,156.69,156.65,6.38365783]
[1750074820234,9.41623815,156.67,156.65,6.38365783]
[1750074820458,9.41623815,156.68,156.65,6.38365783]
[1750074822932,20.570472,156.71,156.64,6.38406537]
[1750074822933,9.41623815,156.67,156.64,6.38406537]
[1750074823147,9.41623815,156.68,156.64,6.38406537]
[1750074823353,9.41623815,156.67,156.64,6.38406537]
[1750074824464,9.41623815,156.67,156.63,6.38447296]
[1750074824691,0.28432314,156.68,156.63,6.38447296]
[1750074824876,6.28245349,156.66,156.63,6.38447296]
[1750074825896,6.28245349,156.67,156.63,6.28245349]
[1750074826455,6.28245349,156.66,156.62,28.62952315]
[1750074827784,6.28245349,156.66,156.62,22.34706966]
[1750074827948,6.28245349,156.66,156.62,28.62952315]
[1750074828290,6.28245349,156.66,156.62,22.34706966]
[1750074828456,6.28245349,156.65,156.62,6.3848806]
[1750074828664,6.28245349,156.64,156.62,6.3848806]
[1750074829958,6.28245349,156.66,156.62,22.3470821]
[1750074830287,6.28245349,156.66,156.62,28.62953559]
[1750074832292,18.933972,156.68,156.62,28.62953559]
[1750074832584,6.28245349,156.66,156.62,28.62953559]
[1750074835087,18.933972,156.68,156.62,28.62953559]
[1750074835265,6.28245349,156.67,156.63,6.28245349]
[1750074835984,6.28245349,156.67,156.64,6.38406537]
[1750074838182,6.28245349,156.67,156.62,28.62953559]
[1750074838487,6.28245349,156.66,156.62,28.62953559]
[1750074838967,6.28245349,156.66,156.62,22.3470821]
[1750074843416,3.33030544,156.69,156.65,6.28245349]
[1750074843588,3.33030544,156.69,156.62,28.6066821]
[1750074843589,9.61275893,156.69,156.62,28.6066821]
[1750074843970,9.61275893,156.69,156.65,6.28245349]
[1750074844294,3.33030544,156.69,156.65,6.28245349]
[1750074844983,3.33030544,156.69,156.66,6.38325035]
[1750074846079,3.33030544,156.69,156.66,28.62382971]
[1750074846270,6.28245349,156.71,156.66,28.62382971]
[1750074846864,5.06842526,156.72,156.66,28.62382971]
[1750074847070,1.73883165,156.72,156.71,6.28245349]
[1750074848436,1.73883165,156.72,156.7,6.4111]
[1750074848720,1.73883165,156.72,156.71,6.28245349]
[1750074848888,1.73883165,156.72,156.71,12.66366719]
[1750074852791,1.73883165,156.72,156.69,28.61955221]
[1750074854994,1.73883165,156.72,156.7,6.28245349]
[1750074855898,1.73883165,156.72,156.69,22.33709872]
[1750074855899,1.73883165,156.72,156.69,28.61955221]
[1750074856106,1.73883165,156.72,156.69,22.33709872]
[1750074856503,8.02128514,156.72,156.69,22.33709872]
[1750074857623,1.73883165,156.72,156.69,28.61955221]
[1750074861004,1.73883165,156.72,156.71,6.28245349]
[1750074862724,1.73883165,156.72,156.71,12.66366719]
[1750074862918,1.73883165,156.72,156.71,6.3812137]
[1750074865728,1.73883165,156.72,156.71,12.66366719]
[1750074866609,1.73883165,156.72,156.71,38.66366719]
[1750074867244,1.73883165,156.72,156.71,37.59576954]
[1750074867411,1.73883165,156.72,156.71,126.79576954]
[1750074868132,1.73883165,156.72,156.71,126.93793111]
[1750074868316,1.73883165,156.72,156.71,126.79576954]
[1750074872722,1.73883165,156.72,156.71,95.5812137]
[1750074872922,1.73883165,156.72,156.71,127.86366719]
[1750074873251,1.73883165,156.72,156.71,121.5812137]
[1750074873433,1.73883165,156.72,156.71,127.86366719]
[1750074874155,1.73883165,156.72,156.71,101.86366719]
[1750074877357,1.73883165,156.72,156.71,12.66366719]
[1750074877657,1.73883165,156.72,156.71,38.66366719]
[1750074881173,1.73883165,156.72,156.71,32.3812137]
[1750074881555,1.73883165,156.72,156.71,38.66366719]
[1750074883450,1.73883165,156.72,156.71,12.66366719]
[1750074891446,1.73883165,156.72,156.71,6.3812137]
[1750074891873,1.73883165,156.72,156.71,12.66366719]
[1750074892295,1.73883165,156.72,156.71,6.3812137]
[1750074892587,1.73883165,156.72,156.71,12.66366719]
[1750074892954,1.73883165,156.72,156.71,6.3812137]
[1750074893175,1.73883165,156.72,156.71,12.66366719]
[1750074894481,1.73883165,156.72,156.71,32.93021605]
[1750074894655,1.73883165,156.72,156.71,39.21266954]
[1750074895880,4.93685028,156.84,156.71,39.49699268]
[1750074896087,6.28245349,156.82,156.77,6.28245349]
[1750074896490,6.28245349,156.82,156.78,22.32427604]
[1750074896697,4.93685028,156.84,156.78,28.60672953]
[1750074896992,6.28245349,156.83,156.78,28.60672953]
[1750074897193,6.28245349,156.83,156.78,22.32427604]
[1750074897495,6.28245349,156.83,156.78,28.60672953]
[1750074897872,6.28245349,156.83,156.79,6.28245349]
[1750074898794,6.28245349,156.83,156.78,6.28245349]
[1750074900202,6.28245349,156.81,156.76,22.32712426]
[1750074900401,6.28245349,156.79,156.76,22.32712426]
[1750074900994,6.28245349,156.8,156.76,22.32712426]
[1750074902687,6.28245349,156.8,156.76,28.60957775]
[1750074903087,32.28245349,156.82,156.78,6.28245349]
[1750074903982,6.28245349,156.81,156.76,54.22301606]
[1750074904187,6.28245349,156.8,156.76,28.60957775]
[1750074904391,6.28245349,156.8,156.76,22.32712426]
[1750074904882,4.93685028,156.84,156.76,54.22301606]
[1750074905086,6.28245349,156.83,156.78,6.28245349]
[1750074905288,4.93685028,156.84,156.78,6.28245349]
[1750074905509,6.28245349,156.83,156.76,54.22301606]
[1750074905714,6.28245349,156.81,156.76,28.60957775]
[1750074906381,6.28245349,156.81,156.77,6.28245349]
[1750074906703,6.28245349,156.81,156.78,22.32427604]
[1750074908488,6.28245349,156.82,156.78,22.32427604]
[1750074910197,6.28245349,156.81,156.78,22.32427604]
[1750074911012,6.28245349,156.81,156.78,15.94591146]
[1750074911409,4.93685028,156.84,156.78,15.94591146]
[1750074911713,6.28245349,156.81,156.78,15.94591146]
[1750074912188,4.93685028,156.84,156.78,22.32427604]
[1750074912381,6.28245349,156.82,156.78,22.32427604]
[1750074912579,6.28245349,156.82,156.78,28.60672953]
[1750074912785,6.28245349,156.83,156.79,6.28245349]
[1750074913002,6.21869018,156.83,156.79,6.28245349]
[1750074913305,6.21869018,156.83,156.78,28.60672953]
[1750074915707,7.60916379,156.85,156.81,6.28245349]
[1750074916396,7.60916379,156.85,156.82,22.31858181]
[1750074916601,1.3267103,156.85,156.82,22.31858181]
[1750074917385,7.60916379,156.85,156.82,22.31858181]
[1750074917999,7.60916379,156.85,156.78,37.95992293]
[1750074918000,7.60916379,156.85,156.8,6.28245349]
[1750074918598,27.3267103,156.85,156.79,22.32285221]
[1750074918799,6.28245349,156.82,156.79,22.32285221]
[1750074920422,6.28245349,156.82,156.77,6.28245349]
[1750074922033,6.28245349,156.81,156.77,6.28245349]
[1750074922922,6.28245349,156.81,156.76,60.50409817]
[1750074923407,6.28245349,156.81,156.77,6.28245349]
[1750074923812,27.3267103,156.85,156.76,28.60957775]
[1750074924000,6.28245349,156.8,156.76,28.60957775]
[1750074924723,27.3267103,156.85,156.76,28.60957775]
[1750074925128,6.28245349,156.83,156.78,6.28245349]
[1750074926421,27.3267103,156.85,156.78,6.28245349]
[1750074926630,6.28245349,156.83,156.78,6.28245349]
[1750074926856,6.28245349,156.81,156.76,54.22301606]
[1750074927010,6.28245349,156.8,156.76,47.8438377]
[1750074927357,6.28245349,156.82,156.78,6.28245349]
[1750074928000,6.28245349,156.82,156.77,6.28245349]
[1750074928704,26.0,156.84,156.77,6.28245349]
[1750074928909,6.28245349,156.82,156.78,22.32427604]
[1750074929328,6.28245349,156.83,156.78,28.60672953]
[1750074930233,6.28245349,156.83,156.78,22.32427604]
[1750074930434,6.28245349,156.83,156.78,28.60672953]
[1750074931311,6.28245349,156.83,156.78,60.49855246]
[1750074931516,27.3267103,156.85,156.8,6.28245349]
[1750074931739,6.28245349,156.84,156.8,6.28245349]
[1750074932037,33.60916379,156.85,156.8,6.28245349]
[1750074932221,33.60916379,156.85,156.78,54.21609897]
[1750074932535,1.3267103,156.85,156.83,6.28245349]
[1750074933244,7.60916379,156.85,156.84,6.3759245]
[1750074933812,9.16016379,156.85,156.8,15.94384914]
[1750074934010,6.28245349,156.81,156.8,15.94384914]
[1750074934248,6.28245349,156.82,156.8,15.94384914]
[1750074934550,6.28245349,156.83,156.8,15.94384914]
[1750074934909,6.28245349,156.84,156.8,15.94384914]
[1750074935110,6.28245349,156.83,156.8,22.32140016]
[1750074935732,6.28245349,156.82,156.8,22.32140016]
[1750074936133,5.78245349,156.82,156.8,22.32140016]
[1750074936328,5.78245349,156.82,156.8,15.94384914]
[1750074937117,6.28245349,156.84,156.8,15.94384914]
[1750074938061,6.28245349,156.84,156.8,22.32140016]
[1750074939562,33.60916379,156.85,156.8,28.60385365]
[1750074939859,33.60916379,156.85,156.77,72.86920616]
[1750074940039,6.28245349,156.84,156.8,6.28245349]
[1750074941176,6.28245349,156.84,156.77,72.86920616]
[1750074941362,6.28245349,156.84,156.8,6.28245349]
[1750074941869,27.3267103,156.85,156.82,28.6010353]
[1750074941870,1.3267103,156.85,156.82,28.6010353]
[1750074942430,1.3267103,156.85,156.83,6.28245349]
[1750074943158,1.3267103,156.85,156.84,6.28245349]
[1750074943840,1.3267103,156.85,156.84,37.08802685]
[1750074945272,1.3267103,156.85,156.84,37.37234999]
[1750074946966,1.3267103,156.85,156.84,63.75234999]
[1750074948050,1.3267103,156.85,156.84,18.43837799]
[1750074948459,1.3267103,156.85,156.84,18.72270113]
[1750074948659,1.3267103,156.85,156.84,18.43837799]
[1750074949346,1.3267103,156.85,156.84,18.72270113]
[1750074951073,1.3267103,156.85,156.84,12.44024764]
[1750074951273,1.3267103,156.85,156.84,45.10270113]
[1750074952551,1.3267103,156.85,156.84,63.75234999]
[1750074952966,1.3267103,156.85,156.84,64.38945898]
[1750074953786,2.73883165,156.95,156.85,18.64964886]
[1750074953971,2.73883165,156.95,156.91,6.28245349]
[1750074954171,2.73883165,156.95,156.92,6.28245349]
[1750074954366,2.73883165,156.95,156.9,18.64964886]
[1750074954679,2.73883165,156.95,156.93,6.28245349]
[1750074955173,2.73883165,156.95,156.92,6.28245349]
[1750074955956,2.73883165,156.95,156.93,12.65472138]
[1750074957790,2.73883165,156.95,156.94,6.28245349]
[1750074957953,2.73883165,156.95,156.94,6.37186185]
[1750074958147,2.73883165,156.95,156.94,12.65431534]
[1750074959076,2.73883165,156.95,156.94,6.37186185]
[1750074959878,2.73883165,156.95,156.93,6.37226789]
[1750074961464,2.73883165,156.95,156.93,12.65472138]
[1750074962767,2.73883165,156.95,156.94,6.28245349]
[1750074964085,2.73883165,156.95,156.94,12.65431534]
[1750074967263,2.73883165,156.95,156.94,6.37186185]
[1750074967453,2.73883165,156.95,156.94,12.65431534]
[1750074969866,2.73883165,156.95,156.94,6.37186185]
[1750074970376,9.02128514,156.95,156.9,54.17370645]
[1750074970568,6.28245349,156.91,156.9,22.30720203]
[1750074970765,2.73883165,156.95,156.9,54.44720203]
[1750074971085,2.73883165,156.95,156.94,6.28245349]
[1750074971656,2.73883165,156.95,156.92,6.28245349]
[1750074972480,2.73883165,156.95,156.93,6.37226789]
[1750074972666,2.73883165,156.95,156.93,12.65472138]
[1750074973466,2.73883165,156.95,156.93,6.37226789]
[1750074973667,2.73883165,156.95,156.94,6.28245349]
[1750074973880,2.73883165,156.95,156.93,6.37226789]
[1750074974182,6.28245349,156.94,156.93,6.37226789]
[1750074974483,6.28245349,156.94,156.91,6.3730801]
[1750074974694,6.28245349,156.92,156.91,6.3730801]
[1750074976492,6.28245349,156.92,156.89,15.93381689]
[1750074976666,6.28245349,156.9,156.89,15.93381689]
[1750074977471,6.28245349,156.9,156.87,6.37470516]
[1750074977796,6.28245349,156.88,156.87,6.37470516]
[1750074978386,26.0,156.91,156.87,6.37470516]
[1750074978589,6.28245349,156.88,156.86,15.93687154]
[1750074978776,6.28245349,156.87,156.86,15.93687154]
[1750074983791,6.28245349,156.87,156.84,22.31573577]
[1750074984102,6.28245349,156.86,156.84,22.31573577]
[1750074985301,6.28245349,156.87,156.84,22.31573577]
[1750074986587,6.28245349,156.9,156.86,6.28245349]
[1750074986980,6.28245349,156.9,156.84,22.31573577]
[1750074987196,6.28245349,156.91,156.86,6.28245349]
[1750074987779,6.28245349,156.91,156.87,22.31146808]
[1750074988009,6.28245349,156.91,156.87,28.59392157]
[1750074988205,6.28245349,156.92,156.87,28.59392157]
[1750074988884,6.28245349,156.92,156.87,60.46744741]
[1750074989802,8.2113,156.94,156.87,38.15597933]
[1750074990003,6.28245349,156.92,156.87,38.15597933]
[1750074990607,6.28245349,156.91,156.87,38.15597933]
[1750074991106,6.28245349,156.91,156.87,31.87352584]
[1750074991296,6.28245349,156.91,156.87,60.46744741]
[1750074991898,6.28245349,156.92,156.88,6.28245349]
[1750074992096,3.32415071,156.93,156.89,6.28245349]
[1750074992305,7.94895349,156.94,156.87,54.18499392]
[1750074992509,7.94895349,156.94,156.89,6.28245349]
[1750074992887,2.73883165,156.95,156.9,6.28245349]